[Event "Czech Open Rapid G1 2024"]
[Site "Pardubice"]
[Date "2024.07.17"]
[Round "3.3"]
[White "Kulon, Klaudia"]
[Black "Movsesian, Sergei"]
[Result "0-1"]
[Annotator "TA"]
[ECO "A13"]
[WhiteElo "2380"]
[BlackElo "2618"]
[PlyCount "44"]
[EventDate "2024.07.16"]
[EventType "swiss"]
[EventCountry "CZE"]
[SourceTitle "playchess.com"]
[Source "ChessBase"]
[SourceQuality "1"]
[TimeControl "1200+10"]

{[%evp 9,44,-35,-29,-45,-35,-62,-65,-85,-95,-227,-209,-339,-351,-406,-400,-398,-402,-416,-391,-407,-400,-563,-458,-735,-735,-714,-701,-1175,-1146,-29994,-29995,-29995,-29992,-29995,-29996,-29997,-29998]} 1. c4 {[%emt 0:00:02]} e6 {[%emt 0:00:08]} 2. e3 {[%emt 0:00:11]} d5 {[%emt 0:00:03]} 3. b3 {[%emt 0:00:01]} c5 {[%emt 0:00:11]} 4. Bb2 {[%emt 0:00:02]} d4 {[%emt 0:00:11]} 5. Nf3 {[%emt 0:00:31]} Nc6 {[%emt 0:00:03]} 6. exd4 {[%emt 0:00:29]} cxd4 {[%emt 0:00:07]} 7. Na3 {[%emt 0:00:32]} e5 {[%emt 0:00:57] Und jetzt ...e4 wäre schön.} 8. Bd3 {[%emt 0:00:28] Schwarz steht etwas besser.} f5 {[%emt 0:01:12] Zielt auf ...e4 ab.} 9. Bb1 {[%emt 0:01:05]} (9. Nb5 $17) 9... e4 $19 {[%emt 0:01:18]} 10. Ng1 {[%emt 0:00:02]} (10. O-O {ist wohl besser.}) 10... Nf6 {[%emt 0:01:07]} 11. Ne2 {[%emt 0:01:01]} d3 {[%emt 0:00:29]} 12. Nf4 {[%emt 0:00:24]} Bd6 {[%emt 0:00:14]} 13. Nd5 {[%emt 0:00:38]} Be5 {[%emt 0:00:25]} 14. Bxe5 {[%emt 0:01:09]} Nxe5 {[%emt 0:00:01]} 15. Nb5 {[%emt 0:00:04]} (15. Qc1 {kämpft weiter.} Nxd5 16. cxd5) 15... O-O {[%emt 0:01:59]} 16. O-O {[%emt 0:01:26]} (16. Nf4 $142) 16... Nxd5 {[%emt 0:01:12]} 17. cxd5 {[%emt 0:00:03]} f4 {[%emt 0:00:23]} 18. Re1 {[%emt 0:01:08] Verhindert f3} Bg4 {[%emt 0:00:33]} 19. Qc1 {[%emt 0:00:40] [#]} Nf3+ $1 {[%emt 0:00:32][%mdl 512] Schwarz setzt Matt.} 20. Kf1 {[%emt 0:00:27]} Nxh2+ {[%emt 0:00:02]} 21. Kg1 {[%emt 0:00:00] [#]} Nf3+ $1 {[%emt 0:00:02][%mdl 512]} 22. Kf1 {[%emt 0:00:01] [#]} (22. gxf3 Bxf3) 22... Qh4 $1 {[%emt 0:00:02] Weiß schien mit der Eröffnung nicht zurechtzukommen.   Gewichteter Fehlerwert: Weiß=1.21/Schwarz=0.07 (makellos) .  Fehler:       	Weiß=4     	---        Ungenau:       	Weiß=1     	---        OK:         	Weiß=4     	Schwarz=8} 0-1

[Event "Czech Open Rapid G1 2024"]
[Site "Pardubice"]
[Date "2024.07.17"]
[Round "3.4"]
[White "Stocek, Jiri"]
[Black "Kuegel, Tobias"]
[Result "1/2-1/2"]
[Annotator "TA"]
[ECO "D53"]
[WhiteElo "2524"]
[BlackElo "2416"]
[PlyCount "109"]
[EventDate "2024.07.16"]
[EventType "swiss"]
[EventCountry "CZE"]
[SourceTitle "playchess.com"]
[Source "ChessBase"]
[SourceQuality "1"]
[TimeControl "1200+10"]

{[%evp 12,109,27,29,39,31,36,0,0,0,0,0,35,20,26,18,12,10,79,76,96,70,160,146,153,156,245,62,59,10,1,4,4,2,3,0,0,0,8,0,0,0,0,0,38,-463,-466,-429,0,0,0,0,0,0,0,0,0,0,0,0,0,0,0,0,0,0,0,0,0,0,0,0,0,0,0,0,0,0,0,0,0,0,0,0,0,0,0,0,0,0,0,0,0,0,0,0,0,0,0,0]} 1. c4 {[%emt 0:00:02]} e6 {[%emt 0:00:01]} 2. Nc3 {[%emt 0:00:06]} d5 {[%emt 0:00:02]} 3. d4 {[%emt 0:00:02]} Nf6 {[%emt 0:00:02]} 4. Bg5 {[%emt 0:00:04]} Be7 {[%emt 0:00:24]} 5. e3 {[%emt 0:00:03]} h6 {[%emt 0:00:14]} 6. Bh4 {[%emt 0:00:26]} dxc4 {[%emt 0:01:04] D53: Queen's Gambit Declined: 4 Bg5 Be7: Early deviations.} 7. Bxc4 {[%emt 0:00:07]} c5 {[%emt 0:00:15]} 8. Nf3 {[%emt 0:00:23]} cxd4 {[%emt 0:00:30]} 9. exd4 {[%emt 0:00:03]} O-O {[%emt 0:00:31]} 10. Qe2 {[%emt 0:00:08]} Nc6 {[%emt 0:00:34]} 11. Rd1 {[%emt 0:00:03]} Nh5 $146 {[%emt 0:01:50]} ({Predecessor:} 11... Nb4 12. O-O Nbd5 13. Ne5 Nxc3 14. bxc3 Nd5 15. Bxe7 Nxe7 16. Bd3 Nd5 17. Bc2 Nf6 {1-0 Suranyi,P (2163)-Vajda,S (2316) Budapest FS02 IM-A 2001 (6)}) 12. Bg3 {[%emt 0:00:09]} Bd7 {[%emt 0:02:22]} 13. a3 {[%emt 0:02:58]} Rc8 {[%emt 0:02:01]} 14. Ba2 {[%emt 0:00:08]} Qa5 {[%emt 0:00:52]} (14... Qb6 $11 {keeps the balance.}) 15. O-O $16 {[%emt 0:01:41]} Nxg3 {[%emt 0:00:17]} 16. hxg3 {[%emt 0:00:02]} a6 {[%emt 0:05:03]} (16... Bxa3 $2 17. d5 $18) (16... Rfd8 $14) 17. d5 $16 {[%emt 0:02:06]} exd5 {[%emt 0:00:20]} 18. Nxd5 {[%emt 0:00:03]} Rfe8 {[%emt 0:00:48]} (18... Rce8 $16) 19. Qd3 $2 {[%emt 0:00:09]} (19. b4 $18 Bxb4 20. Ne3) 19... Be6 $1 $14 {[%emt 0:00:40]} 20. Rfe1 {[%emt 0:00:54]} (20. b4 $1 $14 {feels stronger.} Qd8 (20... Bxb4 $2 21. Bb1 $18) 21. Qe4) 20... Bxd5 $1 $11 {[%emt 0:01:27]} 21. Bxd5 {[%emt 0:00:21]} (21. Qxd5 {simplifies} Qxd5 22. Bxd5 Red8 23. Be4) 21... Bf6 {[%emt 0:00:09]} 22. b4 {[%emt 0:01:51]} Qc7 {[%emt 0:00:19]} 23. Rxe8+ {[%emt 0:00:39]} (23. Qg6 {keeps more tension.} Rxe1+ 24. Rxe1 Rd8 25. Qe4) 23... Rxe8 {[%emt 0:00:02]} 24. Qc4 {[%emt 0:00:57]} Rc8 {[%emt 0:00:48]} 25. b5 {[%emt 0:03:30]} axb5 {[%emt 0:00:20]} 26. Qxb5 {[%emt 0:00:01]} Rd8 {[%emt 0:01:23]} 27. Rc1 {[%emt 0:00:16]} Nd4 {[%emt 0:00:48]} 28. Qc5 $2 {[%emt 0:00:59][%mdl 8192] [#]} (28. Rxc7 Nxb5 29. Bxf7+ Kf8 $11) (28. Qe8+ $14 {stays ahead.} Rxe8 29. Rxc7 Nxf3+ 30. gxf3) 28... Qxc5 $1 $19 {[%emt 0:00:38]} 29. Rxc5 {[%emt 0:00:02]} Be7 $2 {[%emt 0:00:38]} (29... b6 $19 30. Bxf7+ Kxf7 31. Rc7+ Ke6) 30. Rc7 $11 {[%emt 0:00:22]} Rxd5 {[%emt 0:00:04]} (30... Bxa3 31. Bxf7+ Kh7 32. Rxb7 $18) 31. Rxe7 {[%emt 0:00:03]} Nxf3+ {[%emt 0:00:12]} 32. gxf3 {[%emt 0:00:02]} Rd3 {[%emt 0:00:15]} 33. a4 {[%emt 0:00:03]} Rd4 {[%emt 0:00:16]} 34. a5 {[%emt 0:01:11]} Rd5 {[%emt 0:00:19]} 35. Re8+ {[%emt 0:00:02]} Kh7 {[%emt 0:00:02]} 36. Ra8 {[%emt 0:00:01]} g5 {[%emt 0:00:14]} 37. Kf1 {[%emt 0:00:27]} h5 {[%emt 0:00:20]} 38. Kg2 {[%emt 0:00:26]} Kg6 {[%emt 0:00:04]} 39. Kh3 {[%emt 0:00:07]} Rf5 {[%emt 0:00:16]} 40. Kg2 {[%emt 0:00:25]} Rd5 {[%emt 0:00:01]} 41. Ra7 {[%emt 0:00:13]} Rc5 {[%emt 0:00:09]} 42. Kh3 {[%emt 0:00:07]} Rd5 {[%emt 0:00:07]} 43. g4 {[%emt 0:00:12]} f6 {[%emt 0:00:15]} 44. gxh5+ {[%emt 0:00:44]} Kxh5 {[%emt 0:00:02]} 45. Kg3 {[%emt 0:00:01]} Kg6 {[%emt 0:00:13]} 46. f4 $1 {[%emt 0:00:04]} Kf5 {[%emt 0:00:15]} 47. fxg5 {[%emt 0:00:03]} fxg5 {[%emt 0:00:01]} 48. f3 {[%emt 0:00:07]} Rb5 {[%emt 0:00:05]} 49. Ra8 {[%emt 0:00:03]} Rb4 {[%emt 0:00:14]} 50. Rf8+ {[%emt 0:00:27]} Kg6 {[%emt 0:00:08]} 51. Kf2 {[%emt 0:00:48]} Ra4 {[%emt 0:00:11]} 52. Ra8 {[%emt 0:00:29]} Ra3 {[%emt 0:00:05]} 53. Ra7 {[%emt 0:00:33]} Kf5 {[%emt 0:00:06]} 54. Rxb7 {[%emt 0:00:10]} Rxa5 {[%emt 0:00:02]} 55. Kg3 {[%emt 0:00:02]} 1/2-1/2

[Event "Czech Open Rapid G1 2024"]
[Site "Pardubice"]
[Date "2024.07.17"]
[Round "3.5"]
[White "Neuman, Petr"]
[Black "Mica, Marek"]
[Result "1-0"]
[Annotator "TA"]
[ECO "D35"]
[WhiteElo "2441"]
[BlackElo "2375"]
[PlyCount "115"]
[EventDate "2024.07.16"]
[EventType "swiss"]
[EventCountry "CZE"]
[SourceTitle "playchess.com"]
[Source "ChessBase"]
[SourceQuality "1"]
[TimeControl "1200+10"]

{[%evp 46,115,-83,-62,125,66,92,106,85,121,109,114,161,119,248,145,302,306,449,433,795,766,804,823,821,792,843,615,890,844,1231,884,2041,1681,1586,1040,2589,2298,2660,2646,3525,3383,29975,29977,29977,29978,29980,29978,5769,869,5193,868,1014,1021,1326,1288,4923,4698,5235,4888,5929,1533,5736,5367,5093,5076,29984,29985,29985,29978,29986,29987]} 1. d4 {[%emt 0:00:07]} Nf6 {[%emt 0:00:01]} 2. c4 {[%emt 0:00:01]} e6 {[%emt 0:00:01]} 3. Nc3 {[%emt 0:00:04]} d5 {[%emt 0:00:01]} 4. cxd5 {[%emt 0:00:02]} exd5 {[%emt 0:00:02]} 5. Bg5 {[%emt 0:00:01]} c6 {[%emt 0:00:01]} 6. e3 {[%emt 0:00:02]} h6 {[%emt 0:00:04]} 7. Bh4 {[%emt 0:00:02]} Be6 {[%emt 0:00:05] D35: Queen's Gambit Declined: Exchange Variation.} 8. Bd3 {[%emt 0:00:03]} Nbd7 {[%emt 0:00:05]} 9. f3 {[%emt 0:00:31]} Be7 {[%emt 0:00:23]} 10. Nge2 {[%emt 0:00:03]} O-O {[%emt 0:00:49]} 11. Bf2 {[%emt 0:00:09]} b6 $146 {[%emt 0:00:39]} ({Predecessor:} 11... Re8 12. O-O Bf8 13. h3 c5 14. g4 cxd4 15. exd4 Bd6 16. Bg3 Bxg3 17. Nxg3 Qb6 {½-½ Bilych,O (2433)-Solodovnichenko,Y (2456) El Vendrell op 3rd rapid 2023 (7)}) 12. g4 {[%emt 0:00:28]} Ne8 {[%emt 0:00:47]} 13. h4 {[%emt 0:00:14]} g6 {[%emt 0:00:04]} 14. Nf4 {[%emt 0:00:19]} Ng7 {[%emt 0:00:09]} 15. Qc2 {[%emt 0:00:41]} Bd6 {[%emt 0:01:05]} 16. O-O-O {[%emt 0:00:10]} Qe7 {[%emt 0:00:22]} 17. Kb1 {[%emt 0:00:05]} b5 {[%emt 0:00:20]} 18. Bg3 {[%emt 0:01:00]} Nb6 {[%emt 0:00:14]} 19. Qh2 {[%emt 0:02:41]} Bb4 {[%emt 0:00:47]} 20. Nce2 {[%emt 0:00:36]} Nc4 {[%emt 0:00:32]} 21. e4 {[%emt 0:01:09]} dxe4 {[%emt 0:00:57]} 22. Bxe4 {[%emt 0:00:01]} Bxg4 {[%emt 0:00:10]} 23. Bxc6 {[%emt 0:00:33]} Bf5+ {[%emt 0:00:02]} 24. Ka1 {[%emt 0:00:01]} Rac8 $2 {[%emt 0:00:11]} (24... Ne3 $15 25. Rc1 Rac8) 25. Nd5 $16 {[%emt 0:00:06]} (25. Bxb5 $2 Qb7 (25... Ne3 $2 26. Rc1 $19) 26. Bxc4 Rxc4 $19) 25... Qd8 $1 {[%emt 0:01:16]} 26. Nxb4 {[%emt 0:01:36]} a5 {[%emt 0:00:02] [#]} 27. d5 $1 {[%emt 0:00:02]} axb4 {[%emt 0:00:04]} 28. Nd4 $1 {[%emt 0:00:02]} (28. Bxb5 $2 Ne3 29. Rd2 Nc2+ (29... Nxd5 30. Nd4 $16) 30. Rxc2 Bxc2 $19 (30... Rxc2 $2 31. Ba4 $19)) 28... Ne3 {[%emt 0:01:51]} (28... Bd7 $16 {was worth a try.}) 29. Bd6 {[%emt 0:00:57]} Re8 {[%emt 0:01:23]} (29... Nxd1 $16 30. Rxd1 h5 31. Bxf8 (31. Bxb4 Re8 $16) (31. Bxb5 Qb6 $14) (31. Nxb5 b3 $14) 31... Qxf8) 30. Rc1 {[%emt 0:00:08]} ({Only move:} 30. Bxe8 $18 Nxd1 31. Bxf7+ (31. Bxb5 $2 Rc1#) (31. Rxd1 Qxe8 32. Bxb4 Qe3 $18) 31... Kxf7 32. Rxd1 (32. Nc6 Rxc6 33. dxc6 Ne3 $17)) 30... Nc4 $2 {[%emt 0:07:59]} (30... Bd7 $16) 31. Bxb4 {[%emt 0:02:56]} Re3 {[%emt 0:00:11]} (31... Bd7 {might work better.} 32. Bb7 (32. Nxb5 Bxc6 33. dxc6 Rxc6 $16) (32. Bxb5 Bxb5 33. Nxb5 Qb6 $11) 32... Qb6) 32. Nxb5 {[%emt 0:00:43]} ({Don't do} 32. Bxb5 Qxd5 33. Nxf5 (33. Rxc4 Rxc4 34. Bxc4 Qxc4 $11) 33... Nxf5 $18) 32... Qb6 {[%emt 0:01:14]} (32... Ne5 $142 33. Qf4 Nxc6 34. dxc6 (34. Qxe3 $2 {is the wrong capture.} Nxb4 35. Nc3 Qa5 $19) 34... Rd3) 33. Rxc4 $18 {[%emt 0:01:04]} Rxc6 {[%emt 0:00:02]} 34. dxc6 {[%emt 0:00:56]} Qxb5 {[%emt 0:00:01]} 35. Rhc1 {[%emt 0:00:21]} Rxf3 {[%emt 0:00:22]} 36. a3 {[%emt 0:00:43]} Be6 {[%emt 0:02:33]} 37. c7 {[%emt 0:01:01]} Bc8 {[%emt 0:00:12]} 38. Qd6 {[%emt 0:01:22]} Qf5 {[%emt 0:00:48]} 39. Rd4 {[%emt 0:02:12]} Kh7 {[%emt 0:00:07]} 40. Rd5 {[%emt 0:01:11]} Qg4 {[%emt 0:00:06]} 41. Qf8 {[%emt 0:00:41]} g5 {[%emt 0:00:39]} 42. hxg5 {[%emt 0:00:12]} hxg5 {[%emt 0:00:02]} 43. Rd8 {[%emt 0:00:15]} Be6 {[%emt 0:00:03]} 44. c8=Q {[%emt 0:00:07]} Bxc8 {[%emt 0:00:02]} 45. Rdxc8 {[%emt 0:00:04]} Qf4 {[%emt 0:00:18]} 46. Rh1+ {[%emt 0:00:05]} Kg6 {[%emt 0:00:04]} 47. Qd6+ {[%emt 0:00:12]} Ne6 {[%emt 0:00:09]} 48. Qxf4 {[%emt 0:00:02]} Nxf4 {[%emt 0:00:03]} 49. a4 {[%emt 0:00:48]} Nd3 {[%emt 0:00:20]} 50. Bc3 {[%emt 0:00:16]} g4 {[%emt 0:00:17]} 51. a5 {[%emt 0:00:06]} Rf4 {[%emt 0:00:15]} 52. b3 {[%emt 0:00:17]} Re4 {[%emt 0:00:17]} 53. Rc4 {[%emt 0:00:27]} Rxc4 {[%emt 0:00:15]} 54. bxc4 {[%emt 0:00:02]} Nc5 {[%emt 0:00:03]} 55. Ka2 {[%emt 0:00:25]} f5 {[%emt 0:00:05]} 56. Bd4 {[%emt 0:00:01]} Na6 {[%emt 0:00:06]} 57. Be3 {[%emt 0:00:05]} Kf6 {[%emt 0:00:05]} 58. Rh6+ {[%emt 0:00:02]} 1-0

[Event "Czech Open Rapid G1 2024"]
[Site "Pardubice"]
[Date "2024.07.17"]
[Round "3.6"]
[White "Seger, Ruediger"]
[Black "Jirka, Jiri"]
[Result "1/2-1/2"]
[Annotator "TA"]
[ECO "C54"]
[WhiteElo "2264"]
[BlackElo "2387"]
[PlyCount "74"]
[EventDate "2024.07.16"]
[EventType "swiss"]
[EventCountry "CZE"]
[SourceTitle "playchess.com"]
[Source "ChessBase"]
[SourceQuality "1"]
[TimeControl "1200+10"]

{[%evp 11,74,19,27,20,20,10,22,21,37,5,20,17,10,15,20,20,29,22,27,-35,-27,-44,0,-3,0,0,0,-76,-74,-102,-9,-16,0,-64,-79,-83,-4,-50,250,250,234,210,729,251,263,260,333,237,229,210,270,267,225,262,234,169,147,108,122,108,106,0,108,0,116]} 1. e4 {[%emt 0:00:02]} e5 {[%emt 0:00:01]} 2. Nf3 {[%emt 0:00:02]} Nc6 {[%emt 0:00:01]} 3. Bc4 {[%emt 0:00:19]} Nf6 {[%emt 0:00:06]} 4. d3 {[%emt 0:00:02]} Bc5 {[%emt 0:00:08]} 5. c3 {[%emt 0:00:05]} a6 {[%emt 0:00:16]} 6. O-O {[%emt 0:00:10]} Ba7 {[%emt 0:00:15]} 7. a4 {[%emt 0:00:13]} d6 {[%emt 0:00:29]} 8. Nbd2 {[%emt 0:00:09]} O-O {[%emt 0:00:11]} 9. h3 {[%emt 0:00:09]} Kh8 {[%emt 0:05:01]} 10. Re1 {[%emt 0:07:02]} Ng8 {[%emt 0:04:08]} 11. Nf1 {[%emt 0:00:36]} f5 {[%emt 0:00:02]} 12. exf5 {[%emt 0:01:56]} Bxf5 {[%emt 0:00:07]} 13. Be3 {[%emt 0:01:57]} Qf6 {[%emt 0:03:02][%cal Of5h3]} 14. Bxa7 {[%emt 0:00:34]} Rxa7 {[%emt 0:00:02]} 15. Bxg8 {[%emt 0:01:50]} (15. Re3 $11) 15... Kxg8 $15 {[%emt 0:01:06]} 16. N1h2 {[%emt 0:01:36]} Rf7 {[%emt 0:00:31]} 17. d4 {[%emt 0:00:29]} e4 {[%emt 0:00:44]} 18. Nd2 {[%emt 0:00:11]} Ra8 {[%emt 0:04:15]} 19. Ndf1 {[%emt 0:03:15]} (19. f3 $11 {keeps the balance.}) 19... Raf8 $17 {[%emt 0:01:12]} 20. Ne3 {[%emt 0:01:04]} Qg6 {[%emt 0:00:35]} ({Black should try} 20... Bd7 $17 21. Rf1 Nd8) 21. Nxf5 $11 {[%emt 0:00:13]} Rxf5 {[%emt 0:00:02]} 22. Rxe4 {[%emt 0:00:20]} (22. Qb3+ $11 d5 23. Rxe4) 22... Rxf2 $15 {[%emt 0:00:10]} 23. Rg4 {[%emt 0:00:20] [#]} Qf7 {[%emt 0:00:15]} (23... Qe8 $1 $17 {[%cal Re8e3] Hoping for ...Qe3!} 24. Rg3 Rxb2) 24. b4 {[%emt 0:00:30]} (24. Rb1 $11 {deserves consideration.} Rf5 25. Qe2) 24... Qc4 $2 {[%emt 0:00:44][%mdl 8192]} (24... Qe6 $15 {stays ahead.} 25. Qd3 Ne7) 25. d5 $18 {[%emt 0:00:10]} Qxc3 {[%emt 0:00:20]} 26. dxc6 {[%emt 0:00:29]} Rd2 $2 {[%emt 0:00:02]} (26... bxc6 27. Qe1 (27. Qd4 Qxd4 28. Rxd4 Rc2 $18) 27... Qxe1+ 28. Rxe1 Ra2) 27. Qc1 $2 {[%emt 0:00:23] [#]} (27. Qe1 Rb8 28. cxb7) 27... Rc2 {[%emt 0:00:41][%cal Bd2c2,Bc2c3,Bc3b3,Bb3b4][%mdl 32]} 28. Qe1 {[%emt 0:00:05]} bxc6 {[%emt 0:00:06]} 29. Qxc3 {[%emt 0:00:21]} Rxc3 {[%emt 0:00:00]} 30. Re1 {[%emt 0:00:04]} h5 {[%emt 0:00:14]} 31. Rg5 {[%emt 0:00:08]} Rb3 {[%emt 0:00:03]} 32. Nf3 {[%emt 0:00:05]} ({Don't do} 32. Rxh5 Rxb4 33. Nf3 Rxa4 $18) 32... Rxb4 {[%emt 0:00:04]} 33. a5 {[%emt 0:00:24]} ({Don't take} 33. Rxh5 Rxa4 34. Re7 Ra1+ 35. Kh2 Rc1 $18) 33... Rb5 {[%emt 0:00:10]} 34. Re7 {[%emt 0:00:02]} Rf7 {[%emt 0:00:12]} 35. Re8+ {[%emt 0:00:05]} Rf8 {[%emt 0:00:01]} 36. Re7 {[%emt 0:00:16][%csl LRc7,LRg7] White is more active.} Rf7 {[%emt 0:00:01]} 37. Re8+ {[%emt 0:00:01]} Rf8 {[%emt 0:00:00] Weighted Error Value: White=0.49/Black=0.31.  Loses game:     	---       	Black=1      Mistake:       	White=5     	Black=3      Inaccurate:     	White=2     	Black=1      OK:         	White=9     	Black=10     Best:        	White=2     	Black=5} 1/2-1/2

[Event "Czech Open Rapid G1 2024"]
[Site "Pardubice"]
[Date "2024.07.17"]
[Round "3.7"]
[White "Konopka, Michal"]
[Black "Abdulov, Orkhan"]
[Result "1/2-1/2"]
[Annotator "TA"]
[ECO "A35"]
[WhiteElo "2326"]
[BlackElo "2382"]
[PlyCount "71"]
[EventDate "2024.07.16"]
[EventType "swiss"]
[EventCountry "CZE"]
[SourceTitle "playchess.com"]
[Source "ChessBase"]
[SourceQuality "1"]
[TimeControl "1200+10"]

{[%evp 22,71,28,16,27,16,17,17,27,28,27,20,49,28,34,7,8,14,14,0,0,0,0,-4,0,0,0,0,0,0,434,0,0,0,0,0,382,0,0,0,414,-14,-14,-18,-10,-20,-20,-19,-22,-39,-36,-39]} 1. Nf3 {[%emt 0:01:28]} c5 {[%emt 0:00:05]} 2. c4 {[%emt 0:00:06]} Nc6 {[%emt 0:00:28]} 3. Nc3 {[%emt 0:00:05]} g6 {[%emt 0:00:06]} 4. e3 {[%emt 0:00:03]} Nf6 {[%emt 0:02:35][%cal Bg8f6,Bf6d5,Bd5c3][%mdl 32]} 5. d4 {[%emt 0:00:04]} cxd4 {[%emt 0:00:35]} 6. exd4 {[%emt 0:00:02]} d5 {[%emt 0:00:02]} 7. cxd5 {[%emt 0:00:13]} Nxd5 {[%emt 0:00:09]} 8. Qb3 {[%emt 0:00:12]} Nxc3 {[%emt 0:00:42]} 9. Bc4 {[%emt 0:00:11]} Nd5 {[%emt 0:03:05]} 10. Bxd5 {[%emt 0:00:04]} e6 {[%emt 0:00:00]} 11. Bxc6+ {[%emt 0:00:11]} bxc6 {[%emt 0:00:03]} 12. O-O {[%emt 0:00:14]} Qd5 {[%emt 0:00:58]} 13. Be3 {[%emt 0:00:18]} Qxb3 {[%emt 0:00:47]} 14. axb3 {[%emt 0:00:04]} f6 {[%emt 0:00:07] The position is equal.} 15. Rfc1 {[%emt 0:00:13]} Bd7 {[%emt 0:00:15]} 16. Nd2 {[%emt 0:01:58]} Bb4 {[%emt 0:03:56]} 17. Ne4 {[%emt 0:04:09]} Ke7 {[%emt 0:00:07]} 18. Bd2 {[%emt 0:02:18]} Bxd2 {[%emt 0:00:18]} 19. Nxd2 {[%emt 0:00:01]} Rhb8 {[%emt 0:00:38]} 20. Kf1 {[%emt 0:00:59]} Rb4 {[%emt 0:02:06]} 21. Rc4 {[%emt 0:00:53]} c5 {[%emt 0:02:54]} 22. Rxc5 {[%emt 0:00:11]} (22. dxc5 $2 {perishes.} Bb5 23. Ke1 Bxc4 24. Nxc4 Rxb3 $19) 22... Rxd4 {[%emt 0:00:28]} 23. Nc4 {[%emt 0:01:43]} Rb8 {[%emt 0:01:06]} 24. Rxa7 {[%emt 0:02:02]} Rxb3 {[%emt 0:00:00]} 25. Na5 {[%emt 0:01:12]} Rd1+ {[%emt 0:00:00]} 26. Ke2 {[%emt 0:00:03]} Rbd3 {[%emt 0:00:00]} 27. Rc2 {[%emt 0:01:00] Dodges R3d2+} e5 {[%emt 0:00:00]} 28. Nc4 {[%emt 0:00:41]} Ke6 $2 {[%emt 0:01:31][%mdl 8192] [#]} (28... Rd4 $1 $11) 29. Ra6+ {[%emt 0:00:11]} Ke7 {[%emt 0:00:02]} 30. Ra7 {[%emt 0:00:10]} Ke6 {[%emt 0:00:01]} 31. Ne3 $2 {[%emt 0:01:34] [#]} (31. Nd2 $18 R1xd2+ 32. Rxd2 Rxd2+ 33. Kxd2) 31... Bb5 $11 {[%emt 0:00:16] ...R3d2+ would now be deadly.} 32. Nxd1 {[%emt 0:00:16]} Rd7+ {[%emt 0:00:10]} 33. Ke1 {[%emt 0:00:25]} Rxa7 {[%emt 0:00:01]} 34. Rc5 {[%emt 0:00:18]} Rb7 {[%emt 0:00:21]} 35. b3 {[%emt 0:00:43]} Bd7 {[%emt 0:00:29]} 36. Rc3 {[%emt 0:00:40] Weighted Error Value: White=0.48/Black=0.30.  Loses game:     	---       	Black=1      Missed win:     	White=2     	---        Inaccurate:     	White=1     	Black=1      OK:         	White=10    	Black=13     Best:        	White=1     	Black=1} 1/2-1/2

[Event "Czech Open Rapid G1 2024"]
[Site "Pardubice"]
[Date "2024.07.17"]
[Round "3.8"]
[White "Krak, Tomas"]
[Black "Cerveny, Martin"]
[Result "1/2-1/2"]
[Annotator "RC"]
[ECO "A53"]
[WhiteElo "2229"]
[BlackElo "2325"]
[PlyCount "117"]
[EventDate "2024.07.16"]
[EventType "swiss"]
[EventCountry "CZE"]
[SourceTitle "playchess.com"]
[Source "ChessBase"]
[SourceQuality "1"]
[TimeControl "1200+10"]

1. c4 {[%emt 0:00:05]} Nf6 {[%emt 0:00:02]} 2. Nf3 {[%emt 0:00:11]} d6 {[%emt 0:00:02]} 3. d4 {[%emt 0:00:05]} Bf5 {[%emt 0:00:02]} 4. Nc3 {[%emt 0:00:06]} c6 {[%emt 0:00:02]} 5. e3 {[%emt 0:02:13]} h6 {[%emt 0:00:16]} 6. Be2 {[%emt 0:00:02]} Nbd7 {[%emt 0:00:02]} 7. O-O {[%emt 0:00:39]} e5 {[%emt 0:00:02]} 8. b4 {[%emt 0:00:51]} Be7 {[%emt 0:00:37]} 9. a4 {[%emt 0:00:16]} O-O {[%emt 0:00:06]} 10. Ba3 {[%emt 0:00:02]} Re8 {[%emt 0:00:13]} 11. b5 {[%emt 0:01:09]} e4 {[%emt 0:00:39]} 12. Nd2 {[%emt 0:00:49]} c5 {[%emt 0:00:09]} 13. f4 {[%emt 0:02:40]} cxd4 {[%emt 0:02:20]} 14. exd4 {[%emt 0:00:02]} d5 {[%emt 0:01:51]} 15. Bxe7 {[%emt 0:00:26]} Qxe7 {[%emt 0:00:38]} 16. c5 {[%emt 0:00:30]} Nxc5 {[%emt 0:00:08]} 17. g4 {[%emt 0:00:45]} Ne6 {[%emt 0:00:22]} 18. gxf5 {[%emt 0:00:19]} Nxd4 {[%emt 0:00:02]} 19. Nb3 {[%emt 0:00:22]} Nxb3 {[%emt 0:00:42]} 20. Qxb3 {[%emt 0:00:01]} Qc5+ {[%emt 0:00:01]} 21. Kh1 {[%emt 0:00:21]} d4 {[%emt 0:00:02]} 22. Bc4 {[%emt 0:01:03]} Re7 {[%emt 0:01:21]} 23. Nd5 {[%emt 0:00:09]} Nxd5 {[%emt 0:00:01]} 24. Bxd5 {[%emt 0:00:02]} Rd8 {[%emt 0:00:01]} 25. f6 {[%emt 0:00:25]} gxf6 {[%emt 0:01:29]} 26. Rg1+ {[%emt 0:03:18]} Kf8 {[%emt 0:00:02]} 27. Qg3 {[%emt 0:00:19]} Ke8 {[%emt 0:00:01]} 28. Ba2 {[%emt 0:00:22]} d3 {[%emt 0:00:33]} 29. Rac1 {[%emt 0:00:57]} Qf5 {[%emt 0:01:27]} 30. Qe3 {[%emt 0:00:39]} Kf8 {[%emt 0:01:57]} 31. Rc5 {[%emt 0:00:23]} Qh7 {[%emt 0:00:20]} 32. f5 {[%emt 0:00:47]} h5 {[%emt 0:01:37]} 33. Rf1 {[%emt 0:02:27]} h4 {[%emt 0:00:14]} 34. Bb3 {[%emt 0:00:05]} d2 {[%emt 0:00:24]} 35. Bd1 {[%emt 0:00:08]} b6 {[%emt 0:00:33]} 36. Rc6 {[%emt 0:00:11]} Qg7 {[%emt 0:01:41]} 37. Rg1 {[%emt 0:00:15]} Qh8 {[%emt 0:00:01]} 38. h3 {[%emt 0:00:33]} Re5 {[%emt 0:00:43]} 39. Rc7 {[%emt 0:00:23]} Qh7 {[%emt 0:02:06]} 40. Qa3+ {[%emt 0:00:22]} Ke8 {[%emt 0:00:19]} 41. Qc3 {[%emt 0:00:58]} Rxf5 {[%emt 0:00:50]} 42. Qc6+ {[%emt 0:00:10]} Kf8 {[%emt 0:00:01]} 43. Qxe4 {[%emt 0:01:01]} Re8 {[%emt 0:01:09]} 44. Qb4+ {[%emt 0:00:16]} Rc5 {[%emt 0:00:01]} 45. Rxc5 {[%emt 0:00:10]} bxc5 {[%emt 0:00:01]} 46. Qxc5+ {[%emt 0:00:00]} Re7 {[%emt 0:00:01]} 47. Qc8+ {[%emt 0:00:11]} Re8 {[%emt 0:00:01]} 48. Qc5+ {[%emt 0:00:05]} Re7 {[%emt 0:00:01]} 49. Bc2 {[%emt 0:00:28]} Qh6 {[%emt 0:00:33]} 50. Qc8+ {[%emt 0:00:10]} Re8 {[%emt 0:00:00]} 51. Qc5+ {[%emt 0:00:01]} Re7 {[%emt 0:00:01]} 52. Qc8+ {[%emt 0:00:18]} Re8 {[%emt 0:00:01]} 53. Qc5+ {[%emt 0:00:01]} Re7 {[%emt 0:00:01]} 54. Qd6 {[%emt 0:00:23]} Qe3 {[%emt 0:00:31]} 55. Qd8+ {[%emt 0:00:08]} Re8 {[%emt 0:00:01]} 56. Qd6+ {[%emt 0:00:04]} Re7 {[%emt 0:00:19]} 57. Qd8+ {[%emt 0:00:07]} Re8 {[%emt 0:00:01]} 58. Qd6+ {[%emt 0:00:01]} Re7 {[%emt 0:00:01]} 59. Qd8+ {[%emt 0:00:29]} 1/2-1/2